{"text_format":"3","workbook":"xlsx","n_sheets":4,"sheets":["ÉVÉNEMENTS","CALENDRIER","VERSION IMPRIMABLE","ADMINISTRATION"],"not_rendered":{"defined_names":18},"read":"whole","date_system":"1900"}

{"sheet":"ÉVÉNEMENTS","index":0,"n_rows":38,"n_cols":5,"rows_kept":38}
[]
[null,"PLANIFICATEUR D’ÉVÉNEMENTS"]
[null,"COMMUNAUTAIRES MENSUELS"]
[]
[]
[]
[]
[null,"DATE","JOUR","MOIS","NOM D’ÉVÉNEMENT"]
[null,"2016-07-01",{"$f":"IF(ISBLANK(tblÉvénements[[#This Row],[DATE]]),\"\",UPPER(TEXT(tblÉvénements[[#This Row],[DATE]],\"jjj\")))","v":"VEN"},{"$f":"IF(ISBLANK(tblÉvénements[[#This Row],[DATE]]),\"\",UPPER(TEXT(tblÉvénements[[#This Row],[DATE]],\"mmm\")))","v":"JUIL"},"Jardin communautaire"]
[null,"2016-07-01",{"$f":"IF(ISBLANK(tblÉvénements[[#This Row],[DATE]]),\"\",UPPER(TEXT(tblÉvénements[[#This Row],[DATE]],\"jjj\")))","v":"VEN"},{"$f":"IF(ISBLANK(tblÉvénements[[#This Row],[DATE]]),\"\",UPPER(TEXT(tblÉvénements[[#This Row],[DATE]],\"mmm\")))","v":"JUIL"},"Conseil municipal"]
[null,"2016-07-02",{"$f":"IF(ISBLANK(tblÉvénements[[#This Row],[DATE]]),\"\",UPPER(TEXT(tblÉvénements[[#This Row],[DATE]],\"jjj\")))","v":"SAM"},{"$f":"IF(ISBLANK(tblÉvénements[[#This Row],[DATE]]),\"\",UPPER(TEXT(tblÉvénements[[#This Row],[DATE]],\"mmm\")))","v":"JUIL"},"Jardin communautaire"]
[null,"2016-07-03",{"$f":"IF(ISBLANK(tblÉvénements[[#This Row],[DATE]]),\"\",UPPER(TEXT(tblÉvénements[[#This Row],[DATE]],\"jjj\")))","v":"DIM"},{"$f":"IF(ISBLANK(tblÉvénements[[#This Row],[DATE]]),\"\",UPPER(TEXT(tblÉvénements[[#This Row],[DATE]],\"mmm\")))","v":"JUIL"},"Soirée cinéma au parc"]
[null,"2016-07-08",{"$f":"IF(ISBLANK(tblÉvénements[[#This Row],[DATE]]),\"\",UPPER(TEXT(tblÉvénements[[#This Row],[DATE]],\"jjj\")))","v":"VEN"},{"$f":"IF(ISBLANK(tblÉvénements[[#This Row],[DATE]]),\"\",UPPER(TEXT(tblÉvénements[[#This Row],[DATE]],\"mmm\")))","v":"JUIL"},"Conseil municipal"]
[null,"2016-07-11",{"$f":"IF(ISBLANK(tblÉvénements[[#This Row],[DATE]]),\"\",UPPER(TEXT(tblÉvénements[[#This Row],[DATE]],\"jjj\")))","v":"LUN"},{"$f":"IF(ISBLANK(tblÉvénements[[#This Row],[DATE]]),\"\",UPPER(TEXT(tblÉvénements[[#This Row],[DATE]],\"mmm\")))","v":"JUIL"},"Chambre de comm. Déjeuner"]
[null,"2016-07-12",{"$f":"IF(ISBLANK(tblÉvénements[[#This Row],[DATE]]),\"\",UPPER(TEXT(tblÉvénements[[#This Row],[DATE]],\"jjj\")))","v":"MAR"},{"$f":"IF(ISBLANK(tblÉvénements[[#This Row],[DATE]]),\"\",UPPER(TEXT(tblÉvénements[[#This Row],[DATE]],\"mmm\")))","v":"JUIL"},"Salon d’antiquités"]
[null,"2016-07-14",{"$f":"IF(ISBLANK(tblÉvénements[[#This Row],[DATE]]),\"\",UPPER(TEXT(tblÉvénements[[#This Row],[DATE]],\"jjj\")))","v":"JEU"},{"$f":"IF(ISBLANK(tblÉvénements[[#This Row],[DATE]]),\"\",UPPER(TEXT(tblÉvénements[[#This Row],[DATE]],\"mmm\")))","v":"JUIL"},"Atelier communautaire"]
[null,"2016-07-15",{"$f":"IF(ISBLANK(tblÉvénements[[#This Row],[DATE]]),\"\",UPPER(TEXT(tblÉvénements[[#This Row],[DATE]],\"jjj\")))","v":"VEN"},{"$f":"IF(ISBLANK(tblÉvénements[[#This Row],[DATE]]),\"\",UPPER(TEXT(tblÉvénements[[#This Row],[DATE]],\"mmm\")))","v":"JUIL"},"Conseil municipal"]
[null,"2016-07-19",{"$f":"IF(ISBLANK(tblÉvénements[[#This Row],[DATE]]),\"\",UPPER(TEXT(tblÉvénements[[#This Row],[DATE]],\"jjj\")))","v":"MAR"},{"$f":"IF(ISBLANK(tblÉvénements[[#This Row],[DATE]]),\"\",UPPER(TEXT(tblÉvénements[[#This Row],[DATE]],\"mmm\")))","v":"JUIL"},"Atelier de planification stratégique"]
[null,"2016-07-20",{"$f":"IF(ISBLANK(tblÉvénements[[#This Row],[DATE]]),\"\",UPPER(TEXT(tblÉvénements[[#This Row],[DATE]],\"jjj\")))","v":"MER"},{"$f":"IF(ISBLANK(tblÉvénements[[#This Row],[DATE]]),\"\",UPPER(TEXT(tblÉvénements[[#This Row],[DATE]],\"mmm\")))","v":"JUIL"},"Nettoyage du parc"]
[null,"2016-07-22",{"$f":"IF(ISBLANK(tblÉvénements[[#This Row],[DATE]]),\"\",UPPER(TEXT(tblÉvénements[[#This Row],[DATE]],\"jjj\")))","v":"VEN"},{"$f":"IF(ISBLANK(tblÉvénements[[#This Row],[DATE]]),\"\",UPPER(TEXT(tblÉvénements[[#This Row],[DATE]],\"mmm\")))","v":"JUIL"},"Conseil municipal"]
[null,"2016-07-26",{"$f":"IF(ISBLANK(tblÉvénements[[#This Row],[DATE]]),\"\",UPPER(TEXT(tblÉvénements[[#This Row],[DATE]],\"jjj\")))","v":"MAR"},{"$f":"IF(ISBLANK(tblÉvénements[[#This Row],[DATE]]),\"\",UPPER(TEXT(tblÉvénements[[#This Row],[DATE]],\"mmm\")))","v":"JUIL"},"Visite guidée pédestre du centre ville"]
[null,"2016-07-26",{"$f":"IF(ISBLANK(tblÉvénements[[#This Row],[DATE]]),\"\",UPPER(TEXT(tblÉvénements[[#This Row],[DATE]],\"jjj\")))","v":"MAR"},{"$f":"IF(ISBLANK(tblÉvénements[[#This Row],[DATE]]),\"\",UPPER(TEXT(tblÉvénements[[#This Row],[DATE]],\"mmm\")))","v":"JUIL"},"Tournée des cafés"]
[null,"2016-07-29",{"$f":"IF(ISBLANK(tblÉvénements[[#This Row],[DATE]]),\"\",UPPER(TEXT(tblÉvénements[[#This Row],[DATE]],\"jjj\")))","v":"VEN"},{"$f":"IF(ISBLANK(tblÉvénements[[#This Row],[DATE]]),\"\",UPPER(TEXT(tblÉvénements[[#This Row],[DATE]],\"mmm\")))","v":"JUIL"},"Conseil municipal"]
[null,"2016-08-05",{"$f":"IF(ISBLANK(tblÉvénements[[#This Row],[DATE]]),\"\",UPPER(TEXT(tblÉvénements[[#This Row],[DATE]],\"jjj\")))","v":"VEN"},{"$f":"IF(ISBLANK(tblÉvénements[[#This Row],[DATE]]),\"\",UPPER(TEXT(tblÉvénements[[#This Row],[DATE]],\"mmm\")))","v":"AOÛT"},"Conseil municipal"]
[null,"2016-08-10",{"$f":"IF(ISBLANK(tblÉvénements[[#This Row],[DATE]]),\"\",UPPER(TEXT(tblÉvénements[[#This Row],[DATE]],\"jjj\")))","v":"MER"},{"$f":"IF(ISBLANK(tblÉvénements[[#This Row],[DATE]]),\"\",UPPER(TEXT(tblÉvénements[[#This Row],[DATE]],\"mmm\")))","v":"AOÛT"},"Nettoyage du parc"]
[null,"2016-08-12",{"$f":"IF(ISBLANK(tblÉvénements[[#This Row],[DATE]]),\"\",UPPER(TEXT(tblÉvénements[[#This Row],[DATE]],\"jjj\")))","v":"VEN"},{"$f":"IF(ISBLANK(tblÉvénements[[#This Row],[DATE]]),\"\",UPPER(TEXT(tblÉvénements[[#This Row],[DATE]],\"mmm\")))","v":"AOÛT"},"Conseil municipal"]
[null,"2016-08-13",{"$f":"IF(ISBLANK(tblÉvénements[[#This Row],[DATE]]),\"\",UPPER(TEXT(tblÉvénements[[#This Row],[DATE]],\"jjj\")))","v":"SAM"},{"$f":"IF(ISBLANK(tblÉvénements[[#This Row],[DATE]]),\"\",UPPER(TEXT(tblÉvénements[[#This Row],[DATE]],\"mmm\")))","v":"AOÛT"},"Jardin communautaire"]
[null,"2016-09-01",{"$f":"IF(ISBLANK(tblÉvénements[[#This Row],[DATE]]),\"\",UPPER(TEXT(tblÉvénements[[#This Row],[DATE]],\"jjj\")))","v":"JEU"},{"$f":"IF(ISBLANK(tblÉvénements[[#This Row],[DATE]]),\"\",UPPER(TEXT(tblÉvénements[[#This Row],[DATE]],\"mmm\")))","v":"SEPT"},"Commission du budget"]
[null,"2016-10-01",{"$f":"IF(ISBLANK(tblÉvénements[[#This Row],[DATE]]),\"\",UPPER(TEXT(tblÉvénements[[#This Row],[DATE]],\"jjj\")))","v":"SAM"},{"$f":"IF(ISBLANK(tblÉvénements[[#This Row],[DATE]]),\"\",UPPER(TEXT(tblÉvénements[[#This Row],[DATE]],\"mmm\")))","v":"OCT"},"Commission du budget"]
[null,"2016-11-03",{"$f":"IF(ISBLANK(tblÉvénements[[#This Row],[DATE]]),\"\",UPPER(TEXT(tblÉvénements[[#This Row],[DATE]],\"jjj\")))","v":"JEU"},{"$f":"IF(ISBLANK(tblÉvénements[[#This Row],[DATE]]),\"\",UPPER(TEXT(tblÉvénements[[#This Row],[DATE]],\"mmm\")))","v":"NOV"},"Commission du budget"]
[null,"2016-12-01",{"$f":"IF(ISBLANK(tblÉvénements[[#This Row],[DATE]]),\"\",UPPER(TEXT(tblÉvénements[[#This Row],[DATE]],\"jjj\")))","v":"JEU"},{"$f":"IF(ISBLANK(tblÉvénements[[#This Row],[DATE]]),\"\",UPPER(TEXT(tblÉvénements[[#This Row],[DATE]],\"mmm\")))","v":"DÉC"},"Commission du budget"]
[null,"2017-01-01",{"$f":"IF(ISBLANK(tblÉvénements[[#This Row],[DATE]]),\"\",UPPER(TEXT(tblÉvénements[[#This Row],[DATE]],\"jjj\")))","v":"DIM"},{"$f":"IF(ISBLANK(tblÉvénements[[#This Row],[DATE]]),\"\",UPPER(TEXT(tblÉvénements[[#This Row],[DATE]],\"mmm\")))","v":"JANV"},"Commission du budget"]
[null,"2017-02-02",{"$f":"IF(ISBLANK(tblÉvénements[[#This Row],[DATE]]),\"\",UPPER(TEXT(tblÉvénements[[#This Row],[DATE]],\"jjj\")))","v":"JEU"},{"$f":"IF(ISBLANK(tblÉvénements[[#This Row],[DATE]]),\"\",UPPER(TEXT(tblÉvénements[[#This Row],[DATE]],\"mmm\")))","v":"FÉVR"},"Commission du budget"]
[null,"2017-03-02",{"$f":"IF(ISBLANK(tblÉvénements[[#This Row],[DATE]]),\"\",UPPER(TEXT(tblÉvénements[[#This Row],[DATE]],\"jjj\")))","v":"JEU"},{"$f":"IF(ISBLANK(tblÉvénements[[#This Row],[DATE]]),\"\",UPPER(TEXT(tblÉvénements[[#This Row],[DATE]],\"mmm\")))","v":"MARS"},"Commission du budget"]
[null,"2017-04-01",{"$f":"IF(ISBLANK(tblÉvénements[[#This Row],[DATE]]),\"\",UPPER(TEXT(tblÉvénements[[#This Row],[DATE]],\"jjj\")))","v":"SAM"},{"$f":"IF(ISBLANK(tblÉvénements[[#This Row],[DATE]]),\"\",UPPER(TEXT(tblÉvénements[[#This Row],[DATE]],\"mmm\")))","v":"AVR"},"Commission du budget"]
[null,"2017-05-01",{"$f":"IF(ISBLANK(tblÉvénements[[#This Row],[DATE]]),\"\",UPPER(TEXT(tblÉvénements[[#This Row],[DATE]],\"jjj\")))","v":"LUN"},{"$f":"IF(ISBLANK(tblÉvénements[[#This Row],[DATE]]),\"\",UPPER(TEXT(tblÉvénements[[#This Row],[DATE]],\"mmm\")))","v":"MAI"},"Commission du budget"]
[null,"2017-06-01",{"$f":"IF(ISBLANK(tblÉvénements[[#This Row],[DATE]]),\"\",UPPER(TEXT(tblÉvénements[[#This Row],[DATE]],\"jjj\")))","v":"JEU"},{"$f":"IF(ISBLANK(tblÉvénements[[#This Row],[DATE]]),\"\",UPPER(TEXT(tblÉvénements[[#This Row],[DATE]],\"mmm\")))","v":"JUIN"},"Commission du budget"]
[null,"2017-06-02",{"$f":"IF(ISBLANK(tblÉvénements[[#This Row],[DATE]]),\"\",UPPER(TEXT(tblÉvénements[[#This Row],[DATE]],\"jjj\")))","v":"VEN"},{"$f":"IF(ISBLANK(tblÉvénements[[#This Row],[DATE]]),\"\",UPPER(TEXT(tblÉvénements[[#This Row],[DATE]],\"mmm\")))","v":"JUIN"},"Conseil municipal"]

{"sheet":"CALENDRIER","index":1,"n_rows":35,"n_cols":21,"rows_kept":35,"merged":[[1,5,1,11],[30,8,34,20]]}
[]
[null,null,2016,null,null,{"$f":"LOOKUP(NumMois,tblMois[NOMBRE],tblMois[MOIS])","v":"JUILLET"}]
[null,null,7,null,null,{"$f":"DATE(AfficherAnnée,NumMois,1)","v":"2016-07-01"},null,null,{"$f":"WEEKDAY(DateDébut)","v":6}]
[null,null,"LUN",null,null,"MAR",null,null,"MER",null,null,"JEU",null,null,"VEN",null,null,"SAM",null,null,"DIM"]
[]
[null,null,{"$f":"DateDébut-(WEEKDAY(DateDébut)-2)+{0;1;2;3;4;5}*7 +{1,2,3,4,5,6,7}-3+COLUMN(B1)","v":"2016-06-27"},null,null,{"$f":"DateDébut-(WEEKDAY(DateDébut)-2)+{0;1;2;3;4;5}*7 +{1,2,3,4,5,6,7}-3+COLUMN(C1)","v":"2016-06-28"},null,null,{"$f":"DateDébut-(WEEKDAY(DateDébut)-2)+{0;1;2;3;4;5}*7 +{1,2,3,4,5,6,7}-3+COLUMN(D1)","v":"2016-06-29"},null,null,{"$f":"DateDébut-(WEEKDAY(DateDébut)-2)+{0;1;2;3;4;5}*7 +{1,2,3,4,5,6,7}-3+COLUMN(E1)","v":"2016-06-30"},null,null,{"$f":"DateDébut-(WEEKDAY(DateDébut)-2)+{0;1;2;3;4;5}*7 +{1,2,3,4,5,6,7}-3+COLUMN(F1)","v":"2016-07-01"},null,null,{"$f":"DateDébut-(WEEKDAY(DateDébut)-2)+{0;1;2;3;4;5}*7 +{1,2,3,4,5,6,7}-3+COLUMN(G1)","v":"2016-07-02"},null,null,{"$f":"DateDébut-(WEEKDAY(DateDébut)-2)+{0;1;2;3;4;5}*7 +{1,2,3,4,5,6,7}-3+COLUMN(H1)","v":"2016-07-03"}]
[null,null,{"$f":"IFERROR(INDEX(tblÉvénements[],SMALL(IF(Dates=C$6,ROW(Dates)),ROW(1:1))-DébutLigneTableau,4),\"\")","v":""},null,null,{"$f":"IFERROR(INDEX(tblÉvénements[],SMALL(IF(Dates=F$6,ROW(Dates)),ROW(1:1))-DébutLigneTableau,4),\"\")","v":""},null,null,{"$f":"IFERROR(INDEX(tblÉvénements[],SMALL(IF(Dates=I$6,ROW(Dates)),ROW(1:1))-DébutLigneTableau,4),\"\")","v":""},null,null,{"$f":"IFERROR(INDEX(tblÉvénements[],SMALL(IF(Dates=L$6,ROW(Dates)),ROW(1:1))-DébutLigneTableau,4),\"\")","v":""},null,null,{"$f":"IFERROR(INDEX(tblÉvénements[],SMALL(IF(Dates=O$6,ROW(Dates)),ROW(1:1))-DébutLigneTableau,4),\"\")","v":"Jardin communautaire"},null,null,{"$f":"IFERROR(INDEX(tblÉvénements[],SMALL(IF(Dates=R$6,ROW(Dates)),ROW(1:1))-DébutLigneTableau,4),\"\")","v":"Jardin communautaire"},null,null,{"$f":"IFERROR(INDEX(tblÉvénements[],SMALL(IF(Dates=U$6,ROW(Dates)),ROW(1:1))-DébutLigneTableau,4),\"\")","v":"Soirée cinéma au parc"}]
[null,null,{"$f":"IFERROR(INDEX(tblÉvénements[],SMALL(IF(Dates=C$6,ROW(Dates)),ROW(2:2))-DébutLigneTableau,4),\"\")","v":""},null,null,{"$f":"IFERROR(INDEX(tblÉvénements[],SMALL(IF(Dates=F$6,ROW(Dates)),ROW(2:2))-DébutLigneTableau,4),\"\")","v":""},null,null,{"$f":"IFERROR(INDEX(tblÉvénements[],SMALL(IF(Dates=I$6,ROW(Dates)),ROW(2:2))-DébutLigneTableau,4),\"\")","v":""},null,null,{"$f":"IFERROR(INDEX(tblÉvénements[],SMALL(IF(Dates=L$6,ROW(Dates)),ROW(2:2))-DébutLigneTableau,4),\"\")","v":""},null,null,{"$f":"IFERROR(INDEX(tblÉvénements[],SMALL(IF(Dates=O$6,ROW(Dates)),ROW(2:2))-DébutLigneTableau,4),\"\")","v":"Conseil municipal"},null,null,{"$f":"IFERROR(INDEX(tblÉvénements[],SMALL(IF(Dates=R$6,ROW(Dates)),ROW(2:2))-DébutLigneTableau,4),\"\")","v":""},null,null,{"$f":"IFERROR(INDEX(tblÉvénements[],SMALL(IF(Dates=U$6,ROW(Dates)),ROW(2:2))-DébutLigneTableau,4),\"\")","v":""}]
[null,null,{"$f":"IFERROR(INDEX(tblÉvénements[],SMALL(IF(Dates=C$6,ROW(Dates)),ROW(3:3))-DébutLigneTableau,4),\"\")","v":""},null,null,{"$f":"IFERROR(INDEX(tblÉvénements[],SMALL(IF(Dates=F$6,ROW(Dates)),ROW(3:3))-DébutLigneTableau,4),\"\")","v":""},null,null,{"$f":"IFERROR(INDEX(tblÉvénements[],SMALL(IF(Dates=I$6,ROW(Dates)),ROW(3:3))-DébutLigneTableau,4),\"\")","v":""},null,null,{"$f":"IFERROR(INDEX(tblÉvénements[],SMALL(IF(Dates=L$6,ROW(Dates)),ROW(3:3))-DébutLigneTableau,4),\"\")","v":""},null,null,{"$f":"IFERROR(INDEX(tblÉvénements[],SMALL(IF(Dates=O$6,ROW(Dates)),ROW(3:3))-DébutLigneTableau,4),\"\")","v":""},null,null,{"$f":"IFERROR(INDEX(tblÉvénements[],SMALL(IF(Dates=R$6,ROW(Dates)),ROW(3:3))-DébutLigneTableau,4),\"\")","v":""},null,null,{"$f":"IFERROR(INDEX(tblÉvénements[],SMALL(IF(Dates=U$6,ROW(Dates)),ROW(3:3))-DébutLigneTableau,4),\"\")","v":""}]
[null,null,{"$f":"IFERROR(INDEX(tblÉvénements[],SMALL(IF(Dates=C$6,ROW(Dates)),ROW(4:4))-DébutLigneTableau,4),\"\")","v":""},null,null,{"$f":"IFERROR(INDEX(tblÉvénements[],SMALL(IF(Dates=F$6,ROW(Dates)),ROW(4:4))-DébutLigneTableau,4),\"\")","v":""},null,null,{"$f":"IFERROR(INDEX(tblÉvénements[],SMALL(IF(Dates=I$6,ROW(Dates)),ROW(4:4))-DébutLigneTableau,4),\"\")","v":""},null,null,{"$f":"IFERROR(INDEX(tblÉvénements[],SMALL(IF(Dates=L$6,ROW(Dates)),ROW(4:4))-DébutLigneTableau,4),\"\")","v":""},null,null,{"$f":"IFERROR(INDEX(tblÉvénements[],SMALL(IF(Dates=O$6,ROW(Dates)),ROW(4:4))-DébutLigneTableau,4),\"\")","v":""},null,null,{"$f":"IFERROR(INDEX(tblÉvénements[],SMALL(IF(Dates=R$6,ROW(Dates)),ROW(4:4))-DébutLigneTableau,4),\"\")","v":""},null,null,{"$f":"IFERROR(INDEX(tblÉvénements[],SMALL(IF(Dates=U$6,ROW(Dates)),ROW(4:4))-DébutLigneTableau,4),\"\")","v":""}]
[null,null,{"$f":"U6+1","v":"2016-07-04"},null,null,{"$f":"C11+1","v":"2016-07-05"},null,null,{"$f":"F11+1","v":"2016-07-06"},null,null,{"$f":"I11+1","v":"2016-07-07"},null,null,{"$f":"L11+1","v":"2016-07-08"},null,null,{"$f":"O11+1","v":"2016-07-09"},null,null,{"$f":"R11+1","v":"2016-07-10"}]
[null,null,{"$f":"IFERROR(INDEX(tblÉvénements[],SMALL(IF(Dates=C$11,ROW(Dates)),ROW(1:1))-DébutLigneTableau,4),\"\")","v":""},null,null,{"$f":"IFERROR(INDEX(tblÉvénements[],SMALL(IF(Dates=F$11,ROW(Dates)),ROW(1:1))-DébutLigneTableau,4),\"\")","v":""},null,null,{"$f":"IFERROR(INDEX(tblÉvénements[],SMALL(IF(Dates=I$11,ROW(Dates)),ROW(1:1))-DébutLigneTableau,4),\"\")","v":""},null,null,{"$f":"IFERROR(INDEX(tblÉvénements[],SMALL(IF(Dates=L$11,ROW(Dates)),ROW(1:1))-DébutLigneTableau,4),\"\")","v":""},null,null,{"$f":"IFERROR(INDEX(tblÉvénements[],SMALL(IF(Dates=O$11,ROW(Dates)),ROW(1:1))-DébutLigneTableau,4),\"\")","v":"Conseil municipal"},null,null,{"$f":"IFERROR(INDEX(tblÉvénements[],SMALL(IF(Dates=R$11,ROW(Dates)),ROW(1:1))-DébutLigneTableau,4),\"\")","v":""},null,null,{"$f":"IFERROR(INDEX(tblÉvénements[],SMALL(IF(Dates=U$11,ROW(Dates)),ROW(1:1))-DébutLigneTableau,4),\"\")","v":""}]
[null,null,{"$f":"IFERROR(INDEX(tblÉvénements[],SMALL(IF(Dates=C$11,ROW(Dates)),ROW(2:2))-DébutLigneTableau,4),\"\")","v":""},null,null,{"$f":"IFERROR(INDEX(tblÉvénements[],SMALL(IF(Dates=F$11,ROW(Dates)),ROW(2:2))-DébutLigneTableau,4),\"\")","v":""},null,null,{"$f":"IFERROR(INDEX(tblÉvénements[],SMALL(IF(Dates=I$11,ROW(Dates)),ROW(2:2))-DébutLigneTableau,4),\"\")","v":""},null,null,{"$f":"IFERROR(INDEX(tblÉvénements[],SMALL(IF(Dates=L$11,ROW(Dates)),ROW(2:2))-DébutLigneTableau,4),\"\")","v":""},null,null,{"$f":"IFERROR(INDEX(tblÉvénements[],SMALL(IF(Dates=O$11,ROW(Dates)),ROW(2:2))-DébutLigneTableau,4),\"\")","v":""},null,null,{"$f":"IFERROR(INDEX(tblÉvénements[],SMALL(IF(Dates=R$11,ROW(Dates)),ROW(2:2))-DébutLigneTableau,4),\"\")","v":""},null,null,{"$f":"IFERROR(INDEX(tblÉvénements[],SMALL(IF(Dates=U$11,ROW(Dates)),ROW(2:2))-DébutLigneTableau,4),\"\")","v":""}]
[null,null,{"$f":"IFERROR(INDEX(tblÉvénements[],SMALL(IF(Dates=C$11,ROW(Dates)),ROW(3:3))-DébutLigneTableau,4),\"\")","v":""},null,null,{"$f":"IFERROR(INDEX(tblÉvénements[],SMALL(IF(Dates=F$11,ROW(Dates)),ROW(3:3))-DébutLigneTableau,4),\"\")","v":""},null,null,{"$f":"IFERROR(INDEX(tblÉvénements[],SMALL(IF(Dates=I$11,ROW(Dates)),ROW(3:3))-DébutLigneTableau,4),\"\")","v":""},null,null,{"$f":"IFERROR(INDEX(tblÉvénements[],SMALL(IF(Dates=L$11,ROW(Dates)),ROW(3:3))-DébutLigneTableau,4),\"\")","v":""},null,null,{"$f":"IFERROR(INDEX(tblÉvénements[],SMALL(IF(Dates=O$11,ROW(Dates)),ROW(3:3))-DébutLigneTableau,4),\"\")","v":""},null,null,{"$f":"IFERROR(INDEX(tblÉvénements[],SMALL(IF(Dates=R$11,ROW(Dates)),ROW(3:3))-DébutLigneTableau,4),\"\")","v":""},null,null,{"$f":"IFERROR(INDEX(tblÉvénements[],SMALL(IF(Dates=U$11,ROW(Dates)),ROW(3:3))-DébutLigneTableau,4),\"\")","v":""}]
[null,null,{"$f":"IFERROR(INDEX(tblÉvénements[],SMALL(IF(Dates=C$11,ROW(Dates)),ROW(4:4))-DébutLigneTableau,4),\"\")","v":""},null,null,{"$f":"IFERROR(INDEX(tblÉvénements[],SMALL(IF(Dates=F$11,ROW(Dates)),ROW(4:4))-DébutLigneTableau,4),\"\")","v":""},null,null,{"$f":"IFERROR(INDEX(tblÉvénements[],SMALL(IF(Dates=I$11,ROW(Dates)),ROW(4:4))-DébutLigneTableau,4),\"\")","v":""},null,null,{"$f":"IFERROR(INDEX(tblÉvénements[],SMALL(IF(Dates=L$11,ROW(Dates)),ROW(4:4))-DébutLigneTableau,4),\"\")","v":""},null,null,{"$f":"IFERROR(INDEX(tblÉvénements[],SMALL(IF(Dates=O$11,ROW(Dates)),ROW(4:4))-DébutLigneTableau,4),\"\")","v":""},null,null,{"$f":"IFERROR(INDEX(tblÉvénements[],SMALL(IF(Dates=R$11,ROW(Dates)),ROW(4:4))-DébutLigneTableau,4),\"\")","v":""},null,null,{"$f":"IFERROR(INDEX(tblÉvénements[],SMALL(IF(Dates=U$11,ROW(Dates)),ROW(4:4))-DébutLigneTableau,4),\"\")","v":""}]
[null,null,{"$f":"U11+1","v":"2016-07-11"},null,null,{"$f":"C16+1","v":"2016-07-12"},null,null,{"$f":"F16+1","v":"2016-07-13"},null,null,{"$f":"I16+1","v":"2016-07-14"},null,null,{"$f":"L16+1","v":"2016-07-15"},null,null,{"$f":"O16+1","v":"2016-07-16"},null,null,{"$f":"R16+1","v":"2016-07-17"}]
[null,null,{"$f":"IFERROR(INDEX(tblÉvénements[],SMALL(IF(Dates=C$16,ROW(Dates)),ROW(1:1))-DébutLigneTableau,4),\"\")","v":"Chambre de comm. Déjeuner"},null,null,{"$f":"IFERROR(INDEX(tblÉvénements[],SMALL(IF(Dates=F$16,ROW(Dates)),ROW(1:1))-DébutLigneTableau,4),\"\")","v":"Salon d’antiquités"},null,null,{"$f":"IFERROR(INDEX(tblÉvénements[],SMALL(IF(Dates=I$16,ROW(Dates)),ROW(1:1))-DébutLigneTableau,4),\"\")","v":""},null,null,{"$f":"IFERROR(INDEX(tblÉvénements[],SMALL(IF(Dates=L$16,ROW(Dates)),ROW(1:1))-DébutLigneTableau,4),\"\")","v":"Atelier communautaire"},null,null,{"$f":"IFERROR(INDEX(tblÉvénements[],SMALL(IF(Dates=O$16,ROW(Dates)),ROW(1:1))-DébutLigneTableau,4),\"\")","v":"Conseil municipal"},null,null,{"$f":"IFERROR(INDEX(tblÉvénements[],SMALL(IF(Dates=R$16,ROW(Dates)),ROW(1:1))-DébutLigneTableau,4),\"\")","v":""},null,null,{"$f":"IFERROR(INDEX(tblÉvénements[],SMALL(IF(Dates=U$16,ROW(Dates)),ROW(1:1))-DébutLigneTableau,4),\"\")","v":""}]
[null,null,{"$f":"IFERROR(INDEX(tblÉvénements[],SMALL(IF(Dates=C$16,ROW(Dates)),ROW(2:2))-DébutLigneTableau,4),\"\")","v":""},null,null,{"$f":"IFERROR(INDEX(tblÉvénements[],SMALL(IF(Dates=F$16,ROW(Dates)),ROW(2:2))-DébutLigneTableau,4),\"\")","v":""},null,null,{"$f":"IFERROR(INDEX(tblÉvénements[],SMALL(IF(Dates=I$16,ROW(Dates)),ROW(2:2))-DébutLigneTableau,4),\"\")","v":""},null,null,{"$f":"IFERROR(INDEX(tblÉvénements[],SMALL(IF(Dates=L$16,ROW(Dates)),ROW(2:2))-DébutLigneTableau,4),\"\")","v":""},null,null,{"$f":"IFERROR(INDEX(tblÉvénements[],SMALL(IF(Dates=O$16,ROW(Dates)),ROW(2:2))-DébutLigneTableau,4),\"\")","v":""},null,null,{"$f":"IFERROR(INDEX(tblÉvénements[],SMALL(IF(Dates=R$16,ROW(Dates)),ROW(2:2))-DébutLigneTableau,4),\"\")","v":""},null,null,{"$f":"IFERROR(INDEX(tblÉvénements[],SMALL(IF(Dates=U$16,ROW(Dates)),ROW(2:2))-DébutLigneTableau,4),\"\")","v":""}]
[null,null,{"$f":"IFERROR(INDEX(tblÉvénements[],SMALL(IF(Dates=C$16,ROW(Dates)),ROW(3:3))-DébutLigneTableau,4),\"\")","v":""},null,null,{"$f":"IFERROR(INDEX(tblÉvénements[],SMALL(IF(Dates=F$16,ROW(Dates)),ROW(3:3))-DébutLigneTableau,4),\"\")","v":""},null,null,{"$f":"IFERROR(INDEX(tblÉvénements[],SMALL(IF(Dates=I$16,ROW(Dates)),ROW(3:3))-DébutLigneTableau,4),\"\")","v":""},null,null,{"$f":"IFERROR(INDEX(tblÉvénements[],SMALL(IF(Dates=L$16,ROW(Dates)),ROW(3:3))-DébutLigneTableau,4),\"\")","v":""},null,null,{"$f":"IFERROR(INDEX(tblÉvénements[],SMALL(IF(Dates=O$16,ROW(Dates)),ROW(3:3))-DébutLigneTableau,4),\"\")","v":""},null,null,{"$f":"IFERROR(INDEX(tblÉvénements[],SMALL(IF(Dates=R$16,ROW(Dates)),ROW(3:3))-DébutLigneTableau,4),\"\")","v":""},null,null,{"$f":"IFERROR(INDEX(tblÉvénements[],SMALL(IF(Dates=U$16,ROW(Dates)),ROW(3:3))-DébutLigneTableau,4),\"\")","v":""}]
[null,null,{"$f":"IFERROR(INDEX(tblÉvénements[],SMALL(IF(Dates=C$16,ROW(Dates)),ROW(4:4))-DébutLigneTableau,4),\"\")","v":""},null,null,{"$f":"IFERROR(INDEX(tblÉvénements[],SMALL(IF(Dates=F$16,ROW(Dates)),ROW(4:4))-DébutLigneTableau,4),\"\")","v":""},null,null,{"$f":"IFERROR(INDEX(tblÉvénements[],SMALL(IF(Dates=I$16,ROW(Dates)),ROW(4:4))-DébutLigneTableau,4),\"\")","v":""},null,null,{"$f":"IFERROR(INDEX(tblÉvénements[],SMALL(IF(Dates=L$16,ROW(Dates)),ROW(4:4))-DébutLigneTableau,4),\"\")","v":""},null,null,{"$f":"IFERROR(INDEX(tblÉvénements[],SMALL(IF(Dates=O$16,ROW(Dates)),ROW(4:4))-DébutLigneTableau,4),\"\")","v":""},null,null,{"$f":"IFERROR(INDEX(tblÉvénements[],SMALL(IF(Dates=R$16,ROW(Dates)),ROW(4:4))-DébutLigneTableau,4),\"\")","v":""},null,null,{"$f":"IFERROR(INDEX(tblÉvénements[],SMALL(IF(Dates=U$16,ROW(Dates)),ROW(4:4))-DébutLigneTableau,4),\"\")","v":""}]
[null,null,{"$f":"U16+1","v":"2016-07-18"},null,null,{"$f":"C21+1","v":"2016-07-19"},null,null,{"$f":"F21+1","v":"2016-07-20"},null,null,{"$f":"I21+1","v":"2016-07-21"},null,null,{"$f":"L21+1","v":"2016-07-22"},null,null,{"$f":"O21+1","v":"2016-07-23"},null,null,{"$f":"R21+1","v":"2016-07-24"}]
[null,null,{"$f":"IFERROR(INDEX(tblÉvénements[],SMALL(IF(Dates=C$21,ROW(Dates)),ROW(1:1))-DébutLigneTableau,4),\"\")","v":""},null,null,{"$f":"IFERROR(INDEX(tblÉvénements[],SMALL(IF(Dates=F$21,ROW(Dates)),ROW(1:1))-DébutLigneTableau,4),\"\")","v":"Atelier de planification stratégique"},null,null,{"$f":"IFERROR(INDEX(tblÉvénements[],SMALL(IF(Dates=I$21,ROW(Dates)),ROW(1:1))-DébutLigneTableau,4),\"\")","v":"Nettoyage du parc"},null,null,{"$f":"IFERROR(INDEX(tblÉvénements[],SMALL(IF(Dates=L$21,ROW(Dates)),ROW(1:1))-DébutLigneTableau,4),\"\")","v":""},null,null,{"$f":"IFERROR(INDEX(tblÉvénements[],SMALL(IF(Dates=O$21,ROW(Dates)),ROW(1:1))-DébutLigneTableau,4),\"\")","v":"Conseil municipal"},null,null,{"$f":"IFERROR(INDEX(tblÉvénements[],SMALL(IF(Dates=R$21,ROW(Dates)),ROW(1:1))-DébutLigneTableau,4),\"\")","v":""},null,null,{"$f":"IFERROR(INDEX(tblÉvénements[],SMALL(IF(Dates=U$21,ROW(Dates)),ROW(1:1))-DébutLigneTableau,4),\"\")","v":""}]
[null,null,{"$f":"IFERROR(INDEX(tblÉvénements[],SMALL(IF(Dates=C$21,ROW(Dates)),ROW(2:2))-DébutLigneTableau,4),\"\")","v":""},null,null,{"$f":"IFERROR(INDEX(tblÉvénements[],SMALL(IF(Dates=F$21,ROW(Dates)),ROW(2:2))-DébutLigneTableau,4),\"\")","v":""},null,null,{"$f":"IFERROR(INDEX(tblÉvénements[],SMALL(IF(Dates=I$21,ROW(Dates)),ROW(2:2))-DébutLigneTableau,4),\"\")","v":""},null,null,{"$f":"IFERROR(INDEX(tblÉvénements[],SMALL(IF(Dates=L$21,ROW(Dates)),ROW(2:2))-DébutLigneTableau,4),\"\")","v":""},null,null,{"$f":"IFERROR(INDEX(tblÉvénements[],SMALL(IF(Dates=O$21,ROW(Dates)),ROW(2:2))-DébutLigneTableau,4),\"\")","v":""},null,null,{"$f":"IFERROR(INDEX(tblÉvénements[],SMALL(IF(Dates=R$21,ROW(Dates)),ROW(2:2))-DébutLigneTableau,4),\"\")","v":""},null,null,{"$f":"IFERROR(INDEX(tblÉvénements[],SMALL(IF(Dates=U$21,ROW(Dates)),ROW(2:2))-DébutLigneTableau,4),\"\")","v":""}]
[null,null,{"$f":"IFERROR(INDEX(tblÉvénements[],SMALL(IF(Dates=C$21,ROW(Dates)),ROW(3:3))-DébutLigneTableau,4),\"\")","v":""},null,null,{"$f":"IFERROR(INDEX(tblÉvénements[],SMALL(IF(Dates=F$21,ROW(Dates)),ROW(3:3))-DébutLigneTableau,4),\"\")","v":""},null,null,{"$f":"IFERROR(INDEX(tblÉvénements[],SMALL(IF(Dates=I$21,ROW(Dates)),ROW(3:3))-DébutLigneTableau,4),\"\")","v":""},null,null,{"$f":"IFERROR(INDEX(tblÉvénements[],SMALL(IF(Dates=L$21,ROW(Dates)),ROW(3:3))-DébutLigneTableau,4),\"\")","v":""},null,null,{"$f":"IFERROR(INDEX(tblÉvénements[],SMALL(IF(Dates=O$21,ROW(Dates)),ROW(3:3))-DébutLigneTableau,4),\"\")","v":""},null,null,{"$f":"IFERROR(INDEX(tblÉvénements[],SMALL(IF(Dates=R$21,ROW(Dates)),ROW(3:3))-DébutLigneTableau,4),\"\")","v":""},null,null,{"$f":"IFERROR(INDEX(tblÉvénements[],SMALL(IF(Dates=U$21,ROW(Dates)),ROW(3:3))-DébutLigneTableau,4),\"\")","v":""}]
[null,null,{"$f":"IFERROR(INDEX(tblÉvénements[],SMALL(IF(Dates=C$21,ROW(Dates)),ROW(4:4))-DébutLigneTableau,4),\"\")","v":""},null,null,{"$f":"IFERROR(INDEX(tblÉvénements[],SMALL(IF(Dates=F$21,ROW(Dates)),ROW(4:4))-DébutLigneTableau,4),\"\")","v":""},null,null,{"$f":"IFERROR(INDEX(tblÉvénements[],SMALL(IF(Dates=I$21,ROW(Dates)),ROW(4:4))-DébutLigneTableau,4),\"\")","v":""},null,null,{"$f":"IFERROR(INDEX(tblÉvénements[],SMALL(IF(Dates=L$21,ROW(Dates)),ROW(4:4))-DébutLigneTableau,4),\"\")","v":""},null,null,{"$f":"IFERROR(INDEX(tblÉvénements[],SMALL(IF(Dates=O$21,ROW(Dates)),ROW(4:4))-DébutLigneTableau,4),\"\")","v":""},null,null,{"$f":"IFERROR(INDEX(tblÉvénements[],SMALL(IF(Dates=R$21,ROW(Dates)),ROW(4:4))-DébutLigneTableau,4),\"\")","v":""},null,null,{"$f":"IFERROR(INDEX(tblÉvénements[],SMALL(IF(Dates=U$21,ROW(Dates)),ROW(4:4))-DébutLigneTableau,4),\"\")","v":""}]
[null,null,{"$f":"U21+1","v":"2016-07-25"},null,null,{"$f":"C26+1","v":"2016-07-26"},null,null,{"$f":"F26+1","v":"2016-07-27"},null,null,{"$f":"I26+1","v":"2016-07-28"},null,null,{"$f":"L26+1","v":"2016-07-29"},null,null,{"$f":"O26+1","v":"2016-07-30"},null,null,{"$f":"R26+1","v":"2016-07-31"}]
[null,null,{"$f":"IFERROR(INDEX(tblÉvénements[],SMALL(IF(Dates=C$26,ROW(Dates)),ROW(1:1))-DébutLigneTableau,4),\"\")","v":""},null,null,{"$f":"IFERROR(INDEX(tblÉvénements[],SMALL(IF(Dates=F$26,ROW(Dates)),ROW(1:1))-DébutLigneTableau,4),\"\")","v":"Visite guidée pédestre du centre ville"},null,null,{"$f":"IFERROR(INDEX(tblÉvénements[],SMALL(IF(Dates=I$26,ROW(Dates)),ROW(1:1))-DébutLigneTableau,4),\"\")","v":""},null,null,{"$f":"IFERROR(INDEX(tblÉvénements[],SMALL(IF(Dates=L$26,ROW(Dates)),ROW(1:1))-DébutLigneTableau,4),\"\")","v":""},null,null,{"$f":"IFERROR(INDEX(tblÉvénements[],SMALL(IF(Dates=O$26,ROW(Dates)),ROW(1:1))-DébutLigneTableau,4),\"\")","v":"Conseil municipal"},null,null,{"$f":"IFERROR(INDEX(tblÉvénements[],SMALL(IF(Dates=R$26,ROW(Dates)),ROW(1:1))-DébutLigneTableau,4),\"\")","v":""},null,null,{"$f":"IFERROR(INDEX(tblÉvénements[],SMALL(IF(Dates=U$26,ROW(Dates)),ROW(1:1))-DébutLigneTableau,4),\"\")","v":""}]
[null,null,{"$f":"IFERROR(INDEX(tblÉvénements[],SMALL(IF(Dates=C$26,ROW(Dates)),ROW(2:2))-DébutLigneTableau,4),\"\")","v":""},null,null,{"$f":"IFERROR(INDEX(tblÉvénements[],SMALL(IF(Dates=F$26,ROW(Dates)),ROW(2:2))-DébutLigneTableau,4),\"\")","v":"Tournée des cafés"},null,null,{"$f":"IFERROR(INDEX(tblÉvénements[],SMALL(IF(Dates=I$26,ROW(Dates)),ROW(2:2))-DébutLigneTableau,4),\"\")","v":""},null,null,{"$f":"IFERROR(INDEX(tblÉvénements[],SMALL(IF(Dates=L$26,ROW(Dates)),ROW(2:2))-DébutLigneTableau,4),\"\")","v":""},null,null,{"$f":"IFERROR(INDEX(tblÉvénements[],SMALL(IF(Dates=O$26,ROW(Dates)),ROW(2:2))-DébutLigneTableau,4),\"\")","v":""},null,null,{"$f":"IFERROR(INDEX(tblÉvénements[],SMALL(IF(Dates=R$26,ROW(Dates)),ROW(2:2))-DébutLigneTableau,4),\"\")","v":""},null,null,{"$f":"IFERROR(INDEX(tblÉvénements[],SMALL(IF(Dates=U$26,ROW(Dates)),ROW(2:2))-DébutLigneTableau,4),\"\")","v":""}]
[null,null,{"$f":"IFERROR(INDEX(tblÉvénements[],SMALL(IF(Dates=C$26,ROW(Dates)),ROW(3:3))-DébutLigneTableau,4),\"\")","v":""},null,null,{"$f":"IFERROR(INDEX(tblÉvénements[],SMALL(IF(Dates=F$26,ROW(Dates)),ROW(3:3))-DébutLigneTableau,4),\"\")","v":""},null,null,{"$f":"IFERROR(INDEX(tblÉvénements[],SMALL(IF(Dates=I$26,ROW(Dates)),ROW(3:3))-DébutLigneTableau,4),\"\")","v":""},null,null,{"$f":"IFERROR(INDEX(tblÉvénements[],SMALL(IF(Dates=L$26,ROW(Dates)),ROW(3:3))-DébutLigneTableau,4),\"\")","v":""},null,null,{"$f":"IFERROR(INDEX(tblÉvénements[],SMALL(IF(Dates=O$26,ROW(Dates)),ROW(3:3))-DébutLigneTableau,4),\"\")","v":""},null,null,{"$f":"IFERROR(INDEX(tblÉvénements[],SMALL(IF(Dates=R$26,ROW(Dates)),ROW(3:3))-DébutLigneTableau,4),\"\")","v":""},null,null,{"$f":"IFERROR(INDEX(tblÉvénements[],SMALL(IF(Dates=U$26,ROW(Dates)),ROW(3:3))-DébutLigneTableau,4),\"\")","v":""}]
[null,null,{"$f":"IFERROR(INDEX(tblÉvénements[],SMALL(IF(Dates=C$26,ROW(Dates)),ROW(4:4))-DébutLigneTableau,4),\"\")","v":""},null,null,{"$f":"IFERROR(INDEX(tblÉvénements[],SMALL(IF(Dates=F$26,ROW(Dates)),ROW(4:4))-DébutLigneTableau,4),\"\")","v":""},null,null,{"$f":"IFERROR(INDEX(tblÉvénements[],SMALL(IF(Dates=I$26,ROW(Dates)),ROW(4:4))-DébutLigneTableau,4),\"\")","v":""},null,null,{"$f":"IFERROR(INDEX(tblÉvénements[],SMALL(IF(Dates=L$26,ROW(Dates)),ROW(4:4))-DébutLigneTableau,4),\"\")","v":""},null,null,{"$f":"IFERROR(INDEX(tblÉvénements[],SMALL(IF(Dates=O$26,ROW(Dates)),ROW(4:4))-DébutLigneTableau,4),\"\")","v":""},null,null,{"$f":"IFERROR(INDEX(tblÉvénements[],SMALL(IF(Dates=R$26,ROW(Dates)),ROW(4:4))-DébutLigneTableau,4),\"\")","v":""},null,null,{"$f":"IFERROR(INDEX(tblÉvénements[],SMALL(IF(Dates=U$26,ROW(Dates)),ROW(4:4))-DébutLigneTableau,4),\"\")","v":""}]
[null,null,{"$f":"U26+1","v":"2016-08-01"},null,null,{"$f":"C31+1","v":"2016-08-02"},null,null,"NOTES :"]
[null,null,{"$f":"IFERROR(INDEX(tblÉvénements[],SMALL(IF(Dates=C$31,ROW(Dates)),ROW(1:1))-DébutLigneTableau,4),\"\")","v":""},null,null,{"$f":"IFERROR(INDEX(tblÉvénements[],SMALL(IF(Dates=F$31,ROW(Dates)),ROW(1:1))-DébutLigneTableau,4),\"\")","v":""}]
[null,null,{"$f":"IFERROR(INDEX(tblÉvénements[],SMALL(IF(Dates=C$31,ROW(Dates)),ROW(2:2))-DébutLigneTableau,4),\"\")","v":""},null,null,{"$f":"IFERROR(INDEX(tblÉvénements[],SMALL(IF(Dates=F$31,ROW(Dates)),ROW(2:2))-DébutLigneTableau,4),\"\")","v":""}]
[null,null,{"$f":"IFERROR(INDEX(tblÉvénements[],SMALL(IF(Dates=C$31,ROW(Dates)),ROW(3:3))-DébutLigneTableau,4),\"\")","v":""},null,null,{"$f":"IFERROR(INDEX(tblÉvénements[],SMALL(IF(Dates=F$31,ROW(Dates)),ROW(3:3))-DébutLigneTableau,4),\"\")","v":""}]
[null,null,{"$f":"IFERROR(INDEX(tblÉvénements[],SMALL(IF(Dates=C$31,ROW(Dates)),ROW(4:4))-DébutLigneTableau,4),\"\")","v":""},null,null,{"$f":"IFERROR(INDEX(tblÉvénements[],SMALL(IF(Dates=F$31,ROW(Dates)),ROW(4:4))-DébutLigneTableau,4),\"\")","v":""}]

{"sheet":"VERSION IMPRIMABLE","index":2,"n_rows":35,"n_cols":21,"rows_kept":35,"merged":[[1,5,1,11],[30,8,34,20]]}
[]
[null,null,{"$f":"AfficherAnnée","v":2016},null,null,{"$f":"AfficherMois","v":"JUILLET"},0,0,0,0,0,0]
[]
[null,null,"LUN",null,null,"MAR",null,null,"MER",null,null,"JEU",null,null,"VEN",null,null,"SAM",null,null,"DIM"]
[]
[null,null,{"$f":"CALENDRIER!C6","v":"2016-06-27"},{"$f":"CALENDRIER!D6","v":0},{"$f":"CALENDRIER!E6","v":0},{"$f":"CALENDRIER!F6","v":"2016-06-28"},{"$f":"CALENDRIER!G6","v":0},{"$f":"CALENDRIER!H6","v":0},{"$f":"CALENDRIER!I6","v":"2016-06-29"},{"$f":"CALENDRIER!J6","v":0},{"$f":"CALENDRIER!K6","v":0},{"$f":"CALENDRIER!L6","v":"2016-06-30"},{"$f":"CALENDRIER!M6","v":0},{"$f":"CALENDRIER!N6","v":0},{"$f":"CALENDRIER!O6","v":"2016-07-01"},{"$f":"CALENDRIER!P6","v":0},{"$f":"CALENDRIER!Q6","v":0},{"$f":"CALENDRIER!R6","v":"2016-07-02"},{"$f":"CALENDRIER!S6","v":0},{"$f":"CALENDRIER!T6","v":0},{"$f":"CALENDRIER!U6","v":"2016-07-03"}]
[null,null,{"$f":"CALENDRIER!C7","v":""},{"$f":"CALENDRIER!D7","v":0},{"$f":"CALENDRIER!E7","v":0},{"$f":"CALENDRIER!F7","v":""},{"$f":"CALENDRIER!G7","v":0},{"$f":"CALENDRIER!H7","v":0},{"$f":"CALENDRIER!I7","v":""},{"$f":"CALENDRIER!J7","v":0},{"$f":"CALENDRIER!K7","v":0},{"$f":"CALENDRIER!L7","v":""},{"$f":"CALENDRIER!M7","v":0},{"$f":"CALENDRIER!N7","v":0},{"$f":"CALENDRIER!O7","v":"Jardin communautaire"},{"$f":"CALENDRIER!P7","v":0},{"$f":"CALENDRIER!Q7","v":0},{"$f":"CALENDRIER!R7","v":"Jardin communautaire"},{"$f":"CALENDRIER!S7","v":0},{"$f":"CALENDRIER!T7","v":0},{"$f":"CALENDRIER!U7","v":"Soirée cinéma au parc"}]
[null,null,{"$f":"CALENDRIER!C8","v":""},{"$f":"CALENDRIER!D8","v":"00:00:00"},{"$f":"CALENDRIER!E8","v":"00:00:00"},{"$f":"CALENDRIER!F8","v":""},{"$f":"CALENDRIER!G8","v":"00:00:00"},{"$f":"CALENDRIER!H8","v":"00:00:00"},{"$f":"CALENDRIER!I8","v":""},{"$f":"CALENDRIER!J8","v":"00:00:00"},{"$f":"CALENDRIER!K8","v":"00:00:00"},{"$f":"CALENDRIER!L8","v":""},{"$f":"CALENDRIER!M8","v":"00:00:00"},{"$f":"CALENDRIER!N8","v":"00:00:00"},{"$f":"CALENDRIER!O8","v":"Conseil municipal"},{"$f":"CALENDRIER!P8","v":"00:00:00"},{"$f":"CALENDRIER!Q8","v":"00:00:00"},{"$f":"CALENDRIER!R8","v":""},{"$f":"CALENDRIER!S8","v":"00:00:00"},{"$f":"CALENDRIER!T8","v":"00:00:00"},{"$f":"CALENDRIER!U8","v":""}]
[null,null,{"$f":"CALENDRIER!C9","v":""},{"$f":"CALENDRIER!D9","v":0},{"$f":"CALENDRIER!E9","v":0},{"$f":"CALENDRIER!F9","v":""},{"$f":"CALENDRIER!G9","v":0},{"$f":"CALENDRIER!H9","v":0},{"$f":"CALENDRIER!I9","v":""},{"$f":"CALENDRIER!J9","v":0},{"$f":"CALENDRIER!K9","v":0},{"$f":"CALENDRIER!L9","v":""},{"$f":"CALENDRIER!M9","v":0},{"$f":"CALENDRIER!N9","v":0},{"$f":"CALENDRIER!O9","v":""},{"$f":"CALENDRIER!P9","v":0},{"$f":"CALENDRIER!Q9","v":0},{"$f":"CALENDRIER!R9","v":""},{"$f":"CALENDRIER!S9","v":0},{"$f":"CALENDRIER!T9","v":0},{"$f":"CALENDRIER!U9","v":""}]
[null,null,{"$f":"CALENDRIER!C10","v":""},{"$f":"CALENDRIER!D10","v":0},{"$f":"CALENDRIER!E10","v":0},{"$f":"CALENDRIER!F10","v":""},{"$f":"CALENDRIER!G10","v":0},{"$f":"CALENDRIER!H10","v":0},{"$f":"CALENDRIER!I10","v":""},{"$f":"CALENDRIER!J10","v":0},{"$f":"CALENDRIER!K10","v":0},{"$f":"CALENDRIER!L10","v":""},{"$f":"CALENDRIER!M10","v":0},{"$f":"CALENDRIER!N10","v":0},{"$f":"CALENDRIER!O10","v":""},{"$f":"CALENDRIER!P10","v":0},{"$f":"CALENDRIER!Q10","v":0},{"$f":"CALENDRIER!R10","v":""},{"$f":"CALENDRIER!S10","v":0},{"$f":"CALENDRIER!T10","v":0},{"$f":"CALENDRIER!U10","v":""}]
[null,null,{"$f":"CALENDRIER!C11","v":"2016-07-04"},{"$f":"CALENDRIER!D11","v":0},{"$f":"CALENDRIER!E11","v":0},{"$f":"CALENDRIER!F11","v":"2016-07-05"},{"$f":"CALENDRIER!G11","v":0},{"$f":"CALENDRIER!H11","v":0},{"$f":"CALENDRIER!I11","v":"2016-07-06"},{"$f":"CALENDRIER!J11","v":0},{"$f":"CALENDRIER!K11","v":0},{"$f":"CALENDRIER!L11","v":"2016-07-07"},{"$f":"CALENDRIER!M11","v":0},{"$f":"CALENDRIER!N11","v":0},{"$f":"CALENDRIER!O11","v":"2016-07-08"},{"$f":"CALENDRIER!P11","v":0},{"$f":"CALENDRIER!Q11","v":0},{"$f":"CALENDRIER!R11","v":"2016-07-09"},{"$f":"CALENDRIER!S11","v":0},{"$f":"CALENDRIER!T11","v":0},{"$f":"CALENDRIER!U11","v":"2016-07-10"}]
[null,null,{"$f":"CALENDRIER!C12","v":""},{"$f":"CALENDRIER!D12","v":0},{"$f":"CALENDRIER!E12","v":0},{"$f":"CALENDRIER!F12","v":""},{"$f":"CALENDRIER!G12","v":0},{"$f":"CALENDRIER!H12","v":0},{"$f":"CALENDRIER!I12","v":""},{"$f":"CALENDRIER!J12","v":0},{"$f":"CALENDRIER!K12","v":0},{"$f":"CALENDRIER!L12","v":""},{"$f":"CALENDRIER!M12","v":0},{"$f":"CALENDRIER!N12","v":0},{"$f":"CALENDRIER!O12","v":"Conseil municipal"},{"$f":"CALENDRIER!P12","v":0},{"$f":"CALENDRIER!Q12","v":0},{"$f":"CALENDRIER!R12","v":""},{"$f":"CALENDRIER!S12","v":0},{"$f":"CALENDRIER!T12","v":0},{"$f":"CALENDRIER!U12","v":""}]
[null,null,{"$f":"CALENDRIER!C13","v":""},{"$f":"CALENDRIER!D13","v":0},{"$f":"CALENDRIER!E13","v":0},{"$f":"CALENDRIER!F13","v":""},{"$f":"CALENDRIER!G13","v":0},{"$f":"CALENDRIER!H13","v":0},{"$f":"CALENDRIER!I13","v":""},{"$f":"CALENDRIER!J13","v":0},{"$f":"CALENDRIER!K13","v":0},{"$f":"CALENDRIER!L13","v":""},{"$f":"CALENDRIER!M13","v":0},{"$f":"CALENDRIER!N13","v":0},{"$f":"CALENDRIER!O13","v":""},{"$f":"CALENDRIER!P13","v":0},{"$f":"CALENDRIER!Q13","v":0},{"$f":"CALENDRIER!R13","v":""},{"$f":"CALENDRIER!S13","v":0},{"$f":"CALENDRIER!T13","v":0},{"$f":"CALENDRIER!U13","v":""}]
[null,null,{"$f":"CALENDRIER!C14","v":""},{"$f":"CALENDRIER!D14","v":0},{"$f":"CALENDRIER!E14","v":0},{"$f":"CALENDRIER!F14","v":""},{"$f":"CALENDRIER!G14","v":0},{"$f":"CALENDRIER!H14","v":0},{"$f":"CALENDRIER!I14","v":""},{"$f":"CALENDRIER!J14","v":0},{"$f":"CALENDRIER!K14","v":0},{"$f":"CALENDRIER!L14","v":""},{"$f":"CALENDRIER!M14","v":0},{"$f":"CALENDRIER!N14","v":0},{"$f":"CALENDRIER!O14","v":""},{"$f":"CALENDRIER!P14","v":0},{"$f":"CALENDRIER!Q14","v":0},{"$f":"CALENDRIER!R14","v":""},{"$f":"CALENDRIER!S14","v":0},{"$f":"CALENDRIER!T14","v":0},{"$f":"CALENDRIER!U14","v":""}]
[null,null,{"$f":"CALENDRIER!C15","v":""},{"$f":"CALENDRIER!D15","v":0},{"$f":"CALENDRIER!E15","v":0},{"$f":"CALENDRIER!F15","v":""},{"$f":"CALENDRIER!G15","v":0},{"$f":"CALENDRIER!H15","v":0},{"$f":"CALENDRIER!I15","v":""},{"$f":"CALENDRIER!J15","v":0},{"$f":"CALENDRIER!K15","v":0},{"$f":"CALENDRIER!L15","v":""},{"$f":"CALENDRIER!M15","v":0},{"$f":"CALENDRIER!N15","v":0},{"$f":"CALENDRIER!O15","v":""},{"$f":"CALENDRIER!P15","v":0},{"$f":"CALENDRIER!Q15","v":0},{"$f":"CALENDRIER!R15","v":""},{"$f":"CALENDRIER!S15","v":0},{"$f":"CALENDRIER!T15","v":0},{"$f":"CALENDRIER!U15","v":""}]
[null,null,{"$f":"CALENDRIER!C16","v":"2016-07-11"},{"$f":"CALENDRIER!D16","v":0},{"$f":"CALENDRIER!E16","v":0},{"$f":"CALENDRIER!F16","v":"2016-07-12"},{"$f":"CALENDRIER!G16","v":0},{"$f":"CALENDRIER!H16","v":0},{"$f":"CALENDRIER!I16","v":"2016-07-13"},{"$f":"CALENDRIER!J16","v":0},{"$f":"CALENDRIER!K16","v":0},{"$f":"CALENDRIER!L16","v":"2016-07-14"},{"$f":"CALENDRIER!M16","v":0},{"$f":"CALENDRIER!N16","v":0},{"$f":"CALENDRIER!O16","v":"2016-07-15"},{"$f":"CALENDRIER!P16","v":0},{"$f":"CALENDRIER!Q16","v":0},{"$f":"CALENDRIER!R16","v":"2016-07-16"},{"$f":"CALENDRIER!S16","v":0},{"$f":"CALENDRIER!T16","v":0},{"$f":"CALENDRIER!U16","v":"2016-07-17"}]
[null,null,{"$f":"CALENDRIER!C17","v":"Chambre de comm. Déjeuner"},{"$f":"CALENDRIER!D17","v":0},{"$f":"CALENDRIER!E17","v":0},{"$f":"CALENDRIER!F17","v":"Salon d’antiquités"},{"$f":"CALENDRIER!G17","v":0},{"$f":"CALENDRIER!H17","v":0},{"$f":"CALENDRIER!I17","v":""},{"$f":"CALENDRIER!J17","v":0},{"$f":"CALENDRIER!K17","v":0},{"$f":"CALENDRIER!L17","v":"Atelier communautaire"},{"$f":"CALENDRIER!M17","v":0},{"$f":"CALENDRIER!N17","v":0},{"$f":"CALENDRIER!O17","v":"Conseil municipal"},{"$f":"CALENDRIER!P17","v":0},{"$f":"CALENDRIER!Q17","v":0},{"$f":"CALENDRIER!R17","v":""},{"$f":"CALENDRIER!S17","v":0},{"$f":"CALENDRIER!T17","v":0},{"$f":"CALENDRIER!U17","v":""}]
[null,null,{"$f":"CALENDRIER!C18","v":""},{"$f":"CALENDRIER!D18","v":0},{"$f":"CALENDRIER!E18","v":0},{"$f":"CALENDRIER!F18","v":""},{"$f":"CALENDRIER!G18","v":0},{"$f":"CALENDRIER!H18","v":0},{"$f":"CALENDRIER!I18","v":""},{"$f":"CALENDRIER!J18","v":0},{"$f":"CALENDRIER!K18","v":0},{"$f":"CALENDRIER!L18","v":""},{"$f":"CALENDRIER!M18","v":0},{"$f":"CALENDRIER!N18","v":0},{"$f":"CALENDRIER!O18","v":""},{"$f":"CALENDRIER!P18","v":0},{"$f":"CALENDRIER!Q18","v":0},{"$f":"CALENDRIER!R18","v":""},{"$f":"CALENDRIER!S18","v":0},{"$f":"CALENDRIER!T18","v":0},{"$f":"CALENDRIER!U18","v":""}]
[null,null,{"$f":"CALENDRIER!C19","v":""},{"$f":"CALENDRIER!D19","v":0},{"$f":"CALENDRIER!E19","v":0},{"$f":"CALENDRIER!F19","v":""},{"$f":"CALENDRIER!G19","v":0},{"$f":"CALENDRIER!H19","v":0},{"$f":"CALENDRIER!I19","v":""},{"$f":"CALENDRIER!J19","v":0},{"$f":"CALENDRIER!K19","v":0},{"$f":"CALENDRIER!L19","v":""},{"$f":"CALENDRIER!M19","v":0},{"$f":"CALENDRIER!N19","v":0},{"$f":"CALENDRIER!O19","v":""},{"$f":"CALENDRIER!P19","v":0},{"$f":"CALENDRIER!Q19","v":0},{"$f":"CALENDRIER!R19","v":""},{"$f":"CALENDRIER!S19","v":0},{"$f":"CALENDRIER!T19","v":0},{"$f":"CALENDRIER!U19","v":""}]
[null,null,{"$f":"CALENDRIER!C20","v":""},{"$f":"CALENDRIER!D20","v":0},{"$f":"CALENDRIER!E20","v":0},{"$f":"CALENDRIER!F20","v":""},{"$f":"CALENDRIER!G20","v":0},{"$f":"CALENDRIER!H20","v":0},{"$f":"CALENDRIER!I20","v":""},{"$f":"CALENDRIER!J20","v":0},{"$f":"CALENDRIER!K20","v":0},{"$f":"CALENDRIER!L20","v":""},{"$f":"CALENDRIER!M20","v":0},{"$f":"CALENDRIER!N20","v":0},{"$f":"CALENDRIER!O20","v":""},{"$f":"CALENDRIER!P20","v":0},{"$f":"CALENDRIER!Q20","v":0},{"$f":"CALENDRIER!R20","v":""},{"$f":"CALENDRIER!S20","v":0},{"$f":"CALENDRIER!T20","v":0},{"$f":"CALENDRIER!U20","v":""}]
[null,null,{"$f":"CALENDRIER!C21","v":"2016-07-18"},{"$f":"CALENDRIER!D21","v":0},{"$f":"CALENDRIER!E21","v":0},{"$f":"CALENDRIER!F21","v":"2016-07-19"},{"$f":"CALENDRIER!G21","v":0},{"$f":"CALENDRIER!H21","v":0},{"$f":"CALENDRIER!I21","v":"2016-07-20"},{"$f":"CALENDRIER!J21","v":0},{"$f":"CALENDRIER!K21","v":0},{"$f":"CALENDRIER!L21","v":"2016-07-21"},{"$f":"CALENDRIER!M21","v":0},{"$f":"CALENDRIER!N21","v":0},{"$f":"CALENDRIER!O21","v":"2016-07-22"},{"$f":"CALENDRIER!P21","v":0},{"$f":"CALENDRIER!Q21","v":0},{"$f":"CALENDRIER!R21","v":"2016-07-23"},{"$f":"CALENDRIER!S21","v":0},{"$f":"CALENDRIER!T21","v":0},{"$f":"CALENDRIER!U21","v":"2016-07-24"}]
[null,null,{"$f":"CALENDRIER!C22","v":""},{"$f":"CALENDRIER!D22","v":0},{"$f":"CALENDRIER!E22","v":0},{"$f":"CALENDRIER!F22","v":"Atelier de planification stratégique"},{"$f":"CALENDRIER!G22","v":0},{"$f":"CALENDRIER!H22","v":0},{"$f":"CALENDRIER!I22","v":"Nettoyage du parc"},{"$f":"CALENDRIER!J22","v":0},{"$f":"CALENDRIER!K22","v":0},{"$f":"CALENDRIER!L22","v":""},{"$f":"CALENDRIER!M22","v":0},{"$f":"CALENDRIER!N22","v":0},{"$f":"CALENDRIER!O22","v":"Conseil municipal"},{"$f":"CALENDRIER!P22","v":0},{"$f":"CALENDRIER!Q22","v":0},{"$f":"CALENDRIER!R22","v":""},{"$f":"CALENDRIER!S22","v":0},{"$f":"CALENDRIER!T22","v":0},{"$f":"CALENDRIER!U22","v":""}]
[null,null,{"$f":"CALENDRIER!C23","v":""},{"$f":"CALENDRIER!D23","v":0},{"$f":"CALENDRIER!E23","v":0},{"$f":"CALENDRIER!F23","v":""},{"$f":"CALENDRIER!G23","v":0},{"$f":"CALENDRIER!H23","v":0},{"$f":"CALENDRIER!I23","v":""},{"$f":"CALENDRIER!J23","v":0},{"$f":"CALENDRIER!K23","v":0},{"$f":"CALENDRIER!L23","v":""},{"$f":"CALENDRIER!M23","v":0},{"$f":"CALENDRIER!N23","v":0},{"$f":"CALENDRIER!O23","v":""},{"$f":"CALENDRIER!P23","v":0},{"$f":"CALENDRIER!Q23","v":0},{"$f":"CALENDRIER!R23","v":""},{"$f":"CALENDRIER!S23","v":0},{"$f":"CALENDRIER!T23","v":0},{"$f":"CALENDRIER!U23","v":""}]
[null,null,{"$f":"CALENDRIER!C24","v":""},{"$f":"CALENDRIER!D24","v":0},{"$f":"CALENDRIER!E24","v":0},{"$f":"CALENDRIER!F24","v":""},{"$f":"CALENDRIER!G24","v":0},{"$f":"CALENDRIER!H24","v":0},{"$f":"CALENDRIER!I24","v":""},{"$f":"CALENDRIER!J24","v":0},{"$f":"CALENDRIER!K24","v":0},{"$f":"CALENDRIER!L24","v":""},{"$f":"CALENDRIER!M24","v":0},{"$f":"CALENDRIER!N24","v":0},{"$f":"CALENDRIER!O24","v":""},{"$f":"CALENDRIER!P24","v":0},{"$f":"CALENDRIER!Q24","v":0},{"$f":"CALENDRIER!R24","v":""},{"$f":"CALENDRIER!S24","v":0},{"$f":"CALENDRIER!T24","v":0},{"$f":"CALENDRIER!U24","v":""}]
[null,null,{"$f":"CALENDRIER!C25","v":""},{"$f":"CALENDRIER!D25","v":0},{"$f":"CALENDRIER!E25","v":0},{"$f":"CALENDRIER!F25","v":""},{"$f":"CALENDRIER!G25","v":0},{"$f":"CALENDRIER!H25","v":0},{"$f":"CALENDRIER!I25","v":""},{"$f":"CALENDRIER!J25","v":0},{"$f":"CALENDRIER!K25","v":0},{"$f":"CALENDRIER!L25","v":""},{"$f":"CALENDRIER!M25","v":0},{"$f":"CALENDRIER!N25","v":0},{"$f":"CALENDRIER!O25","v":""},{"$f":"CALENDRIER!P25","v":0},{"$f":"CALENDRIER!Q25","v":0},{"$f":"CALENDRIER!R25","v":""},{"$f":"CALENDRIER!S25","v":0},{"$f":"CALENDRIER!T25","v":0},{"$f":"CALENDRIER!U25","v":""}]
[null,null,{"$f":"CALENDRIER!C26","v":"2016-07-25"},{"$f":"CALENDRIER!D26","v":0},{"$f":"CALENDRIER!E26","v":0},{"$f":"CALENDRIER!F26","v":"2016-07-26"},{"$f":"CALENDRIER!G26","v":0},{"$f":"CALENDRIER!H26","v":0},{"$f":"CALENDRIER!I26","v":"2016-07-27"},{"$f":"CALENDRIER!J26","v":0},{"$f":"CALENDRIER!K26","v":0},{"$f":"CALENDRIER!L26","v":"2016-07-28"},{"$f":"CALENDRIER!M26","v":0},{"$f":"CALENDRIER!N26","v":0},{"$f":"CALENDRIER!O26","v":"2016-07-29"},{"$f":"CALENDRIER!P26","v":0},{"$f":"CALENDRIER!Q26","v":0},{"$f":"CALENDRIER!R26","v":"2016-07-30"},{"$f":"CALENDRIER!S26","v":0},{"$f":"CALENDRIER!T26","v":0},{"$f":"CALENDRIER!U26","v":"2016-07-31"}]
[null,null,{"$f":"CALENDRIER!C27","v":""},{"$f":"CALENDRIER!D27","v":0},{"$f":"CALENDRIER!E27","v":0},{"$f":"CALENDRIER!F27","v":"Visite guidée pédestre du centre ville"},{"$f":"CALENDRIER!G27","v":0},{"$f":"CALENDRIER!H27","v":0},{"$f":"CALENDRIER!I27","v":""},{"$f":"CALENDRIER!J27","v":0},{"$f":"CALENDRIER!K27","v":0},{"$f":"CALENDRIER!L27","v":""},{"$f":"CALENDRIER!M27","v":0},{"$f":"CALENDRIER!N27","v":0},{"$f":"CALENDRIER!O27","v":"Conseil municipal"},{"$f":"CALENDRIER!P27","v":0},{"$f":"CALENDRIER!Q27","v":0},{"$f":"CALENDRIER!R27","v":""},{"$f":"CALENDRIER!S27","v":0},{"$f":"CALENDRIER!T27","v":0},{"$f":"CALENDRIER!U27","v":""}]
[null,null,{"$f":"CALENDRIER!C28","v":""},{"$f":"CALENDRIER!D28","v":0},{"$f":"CALENDRIER!E28","v":0},{"$f":"CALENDRIER!F28","v":"Tournée des cafés"},{"$f":"CALENDRIER!G28","v":0},{"$f":"CALENDRIER!H28","v":0},{"$f":"CALENDRIER!I28","v":""},{"$f":"CALENDRIER!J28","v":0},{"$f":"CALENDRIER!K28","v":0},{"$f":"CALENDRIER!L28","v":""},{"$f":"CALENDRIER!M28","v":0},{"$f":"CALENDRIER!N28","v":0},{"$f":"CALENDRIER!O28","v":""},{"$f":"CALENDRIER!P28","v":0},{"$f":"CALENDRIER!Q28","v":0},{"$f":"CALENDRIER!R28","v":""},{"$f":"CALENDRIER!S28","v":0},{"$f":"CALENDRIER!T28","v":0},{"$f":"CALENDRIER!U28","v":""}]
[null,null,{"$f":"CALENDRIER!C29","v":""},{"$f":"CALENDRIER!D29","v":0},{"$f":"CALENDRIER!E29","v":0},{"$f":"CALENDRIER!F29","v":""},{"$f":"CALENDRIER!G29","v":0},{"$f":"CALENDRIER!H29","v":0},{"$f":"CALENDRIER!I29","v":""},{"$f":"CALENDRIER!J29","v":0},{"$f":"CALENDRIER!K29","v":0},{"$f":"CALENDRIER!L29","v":""},{"$f":"CALENDRIER!M29","v":0},{"$f":"CALENDRIER!N29","v":0},{"$f":"CALENDRIER!O29","v":""},{"$f":"CALENDRIER!P29","v":0},{"$f":"CALENDRIER!Q29","v":0},{"$f":"CALENDRIER!R29","v":""},{"$f":"CALENDRIER!S29","v":0},{"$f":"CALENDRIER!T29","v":0},{"$f":"CALENDRIER!U29","v":""}]
[null,null,{"$f":"CALENDRIER!C30","v":""},{"$f":"CALENDRIER!D30","v":0},{"$f":"CALENDRIER!E30","v":0},{"$f":"CALENDRIER!F30","v":""},{"$f":"CALENDRIER!G30","v":0},{"$f":"CALENDRIER!H30","v":0},{"$f":"CALENDRIER!I30","v":""},{"$f":"CALENDRIER!J30","v":0},{"$f":"CALENDRIER!K30","v":0},{"$f":"CALENDRIER!L30","v":""},{"$f":"CALENDRIER!M30","v":0},{"$f":"CALENDRIER!N30","v":0},{"$f":"CALENDRIER!O30","v":""},{"$f":"CALENDRIER!P30","v":0},{"$f":"CALENDRIER!Q30","v":0},{"$f":"CALENDRIER!R30","v":""},{"$f":"CALENDRIER!S30","v":0},{"$f":"CALENDRIER!T30","v":0},{"$f":"CALENDRIER!U30","v":""}]
[null,null,{"$f":"CALENDRIER!C31","v":"2016-08-01"},{"$f":"CALENDRIER!D31","v":0},{"$f":"CALENDRIER!E31","v":0},{"$f":"CALENDRIER!F31","v":"2016-08-02"},null,null,{"$f":"CALENDRIER!I31","v":"NOTES :"}]
[null,null,{"$f":"CALENDRIER!C32","v":""},{"$f":"CALENDRIER!D32","v":0},{"$f":"CALENDRIER!E32","v":0},{"$f":"CALENDRIER!F32","v":""}]
[null,null,{"$f":"CALENDRIER!C33","v":""},{"$f":"CALENDRIER!D33","v":0},{"$f":"CALENDRIER!E33","v":0},{"$f":"CALENDRIER!F33","v":""}]
[null,null,{"$f":"CALENDRIER!C34","v":""},{"$f":"CALENDRIER!D34","v":0},{"$f":"CALENDRIER!E34","v":0},{"$f":"CALENDRIER!F34","v":""}]
[null,null,{"$f":"CALENDRIER!C35","v":""},{"$f":"CALENDRIER!D35","v":0},{"$f":"CALENDRIER!E35","v":0},{"$f":"CALENDRIER!F35","v":""}]

{"sheet":"ADMINISTRATION","index":3,"n_rows":14,"n_cols":3,"rows_kept":14,"hidden":true}
[]
[null,"MOIS","NOMBRE"]
[null,"JANVIER",1]
[null,"FÉVRIER",2]
[null,"MARS",3]
[null,"AVRIL",4]
[null,"MAI",5]
[null,"JUIN",6]
[null,"JUILLET",7]
[null,"AOÛT",8]
[null,"SEPTEMBRE",9]
[null,"OCTOBRE",10]
[null,"NOVEMBRE",11]
[null,"DÉCEMBRE",12]